bitfinex-derivatives/quotes_ETHF0:USTF0_20260112
["timestamp","ask_amount","ask_price","bid_price","bid_amount"]
[1768222747678,0.96782774,3119.3,3118.4,1.39665212]
[1768222747879,1.27052444,3119.4,3118.4,1.39665212]
[1768222748073,0.96782561,3119.3,3118.4,1.39665212]
[1768222748274,1.27052444,3119.4,3118.4,1.39665212]
[1768222748474,0.9678839,3119.3,3118.4,1.39665212]
[1768222748674,1.27052444,3119.4,3118.4,1.39665212]
[1768222748876,0.96788386,3119.3,3118.4,1.39665212]
[1768222749076,1.27052444,3119.4,3118.4,1.39665212]
[1768222749278,0.96788204,3119.3,3118.4,1.39665212]
[1768222749478,0.96788204,3119.2,3118.4,1.39665212]
[1768222749679,1.27052444,3119.4,3118.4,1.39665212]
[1768222749880,0.96796128,3119.3,3118.4,1.39665212]
[1768222750072,0.96796128,3119.2,3118.4,0.16054]
[1768222750276,1.28058493,3119.3,3118.4,1.39665212]
[1768222750481,0.9680109,3119.2,3118.4,1.39665212]
[1768222750680,1.28058493,3119.3,3118.4,1.39665212]
[1768222750882,0.9680342,3119.2,3118.4,1.39665212]
[1768222751082,1.28058493,3119.3,3118.4,1.39665212]
[1768222751285,0.96798106,3119.2,3118.4,0.16054]
[1768222751475,1.28058493,3119.3,3118.4,0.16054]
[1768222751678,0.96810053,3119.2,3118.4,0.16054]
[1768222751880,1.28058493,3119.3,3118.4,0.16054]
[1768222752080,0.96810024,3119.2,3118.4,0.16054]
[1768222752276,1.28058493,3119.3,3118.4,0.16054]
[1768222752482,0.96825027,3119.2,3118.5,1.23611212]
[1768222752671,1.28058493,3119.3,3118.5,1.23611212]
[1768222752874,0.96825258,3119.2,3118.5,1.23611212]
[1768222753081,1.28058493,3119.3,3118.5,1.23611212]
[1768222753282,0.96826769,3119.2,3118.5,1.23611212]
[1768222753485,1.28058493,3119.3,3118.5,1.23611212]
[1768222753675,0.96844354,3119.2,3118.5,1.23611212]
[1768222753877,1.28058493,3119.3,3118.5,1.23611212]
[1768222754079,0.96844156,3119.2,3118.5,1.23611212]
[1768222754283,1.28058493,3119.3,3118.5,1.23611212]
[1768222754486,0.96866574,3119.2,3118.5,1.23611212]
[1768222754680,1.28058493,3119.3,3118.5,1.23611212]
[1768222754880,0.96866924,3119.2,3118.5,1.23611212]
[1768222755080,1.28058493,3119.3,3118.5,1.23611212]
[1768222755281,0.96866947,3119.2,3118.5,1.23611212]
[1768222755485,1.28058493,3119.3,3118.5,1.23611212]
[1768222755684,0.96893959,3119.2,3118.5,1.23611212]
[1768222755885,0.96893886,3119.1,3118.5,1.23611212]
[1768222756084,1.28058493,3119.3,3118.5,1.23611212]
[1768222756275,0.96893884,3119.2,3118.5,1.23611212]
[1768222756478,1.28058493,3119.3,3118.5,1.23611212]
[1768222756479,0.96893884,3119.1,3118.5,1.23611212]
[1768222756688,1.28058493,3119.3,3118.5,1.23611212]
[1768222756888,0.96928439,3119.2,3118.5,1.23611212]
[1768222757085,0.96928439,3119.1,3118.5,1.23611212]
[1768222757388,1.28058493,3119.3,3118.5,1.23611212]
[1768222757581,0.96980727,3119.2,3118.5,1.23611212]
[1768222757884,0.96980727,3119.1,3118.5,1.23611212]
[1768222758087,1.28058493,3119.3,3118.5,1.23611212]
[1768222758285,0.96980509,3119.2,3118.5,1.23611212]
[1768222758473,0.96980509,3119.1,3118.5,1.23611212]
[1768222758679,0.96980509,3119.0,3118.5,1.23611212]
[1768222758885,1.28058493,3119.3,3118.5,1.23611212]
[1768222759087,0.97002354,3119.2,3118.5,1.23611212]
[1768222759279,0.97002354,3119.1,3118.5,1.23611212]
[1768222759479,0.97002354,3119.0,3118.5,1.23611212]
[1768222759681,1.28058493,3119.3,3118.5,1.23611212]
[1768222759882,0.97024731,3119.2,3118.5,1.23611212]
[1768222760090,0.97024731,3119.1,3118.5,1.23611212]
[1768222760277,0.97024731,3119.0,3118.5,1.23611212]
[1768222760481,1.28058493,3119.3,3118.5,1.23611212]
[1768222760681,0.96799389,3119.2,3118.5,1.23611212]
[1768222760876,0.96799389,3119.1,3118.5,1.23611212]
[1768222761086,0.96799389,3119.0,3118.5,1.23611212]
[1768222761290,1.28058493,3119.3,3118.5,1.23611212]
[1768222761485,0.96799326,3119.2,3118.5,1.23611212]
[1768222761684,0.96799326,3119.1,3118.5,1.23611212]
[1768222761886,0.96799326,3119.0,3118.5,1.23611212]
[1768222762088,1.28058493,3119.3,3118.5,1.23611212]
[1768222762381,0.9679923,3119.2,3118.5,1.23611212]
[1768222762591,0.9679923,3119.1,3118.5,1.23611212]
[1768222762891,0.9679923,3119.0,3118.5,1.23611212]
[1768222763091,1.28058493,3119.3,3118.4,0.16054]
[1768222763294,0.9679917,3119.2,3118.4,0.16054]
[1768222763592,0.9679917,3119.1,3118.4,0.16054]
[1768222763798,0.9679917,3119.0,3118.4,0.16054]
[1768222764094,1.28058493,3119.3,3118.4,0.16054]
[1768222764393,0.967993,3119.2,3118.4,0.16054]
[1768222764594,0.967993,3119.1,3118.4,0.16054]
[1768222764896,0.967993,3119.0,3118.4,0.16054]
[1768222765089,1.28058493,3119.3,3118.4,0.16054]
[1768222765291,0.96799894,3119.2,3118.4,0.16054]
[1768222765486,0.96799894,3119.1,3118.4,0.16054]
[1768222765688,0.96799894,3119.0,3118.4,0.16054]
[1768222765887,1.28058493,3119.3,3118.5,1.23611212]
[1768222766089,0.96800329,3119.2,3118.5,1.23611212]
[1768222766290,0.96800329,3119.1,3118.5,1.23611212]
[1768222766491,0.96800329,3119.0,3118.5,1.23611212]
[1768222766694,1.28058493,3119.3,3118.5,1.23611212]
[1768222766895,0.96800645,3119.2,3118.5,1.23611212]
[1768222767094,0.96800645,3119.1,3118.5,1.23611212]
[1768222767294,0.96800645,3119.0,3118.5,1.23611212]
[1768222767497,1.28058493,3119.3,3118.5,1.23611212]
[1768222767696,0.96800442,3119.2,3118.5,1.23611212]
[1768222767897,0.96800442,3119.1,3118.5,1.23611212]
[1768222768096,0.96800442,3119.0,3118.5,1.23611212]
[1768222768296,1.28058493,3119.3,3118.5,1.23611212]
[1768222768498,0.96801192,3119.2,3118.5,1.23611212]
[1768222768691,0.96801192,3119.1,3118.5,1.23611212]
[1768222768892,0.96801192,3119.0,3118.5,1.23611212]
[1768222769187,1.28058493,3119.3,3118.5,1.23611212]
[1768222769386,0.96801249,3119.2,3118.5,1.23611212]
[1768222769590,0.96801249,3119.1,3118.5,1.23611212]
[1768222769790,0.96801249,3119.0,3118.5,1.23611212]
[1768222769990,1.28058493,3119.3,3118.4,0.16054]
[1768222770190,1.2988988,3119.1,3118.4,0.16054]
[1768222770400,0.96802404,3119.0,3118.4,0.16054]
[1768222770599,0.96802404,3118.9,3118.4,0.16054]
[1768222770900,1.2988988,3119.1,3118.4,0.16054]
[1768222771100,0.96800637,3119.0,3118.4,0.16054]
[1768222771303,0.96800637,3118.9,3118.4,0.16054]
[1768222771501,1.2988988,3119.1,3118.4,0.16054]
[1768222771800,0.96799142,3119.0,3118.4,0.16054]
[1768222771991,0.96799142,3118.9,3118.4,0.16054]
[1768222772195,1.2988988,3119.1,3118.4,0.16054]
[1768222772502,0.9679909,3119.0,3118.4,0.16054]
[1768222772797,1.2988988,3118.8,3117.4,1.536]
[1768222772995,1.2988988,3118.8,3117.7,1.23611212]
[1768222773195,2.26675987,3118.7,3117.7,1.23611212]
[1768222773396,1.2988988,3118.7,3117.7,1.23611212]
[1768222773597,1.2988988,3118.7,3117.9,0.16056]
[1768222773993,1.2988988,3118.7,3117.9,1.39667212]
[1768222777888,1.2988988,3118.7,3117.4,1.536]
[1768222777889,1.44324352,3119.1,3118.1,1.23611212]
[1768222778091,0.96680598,3119.0,3118.1,1.23611212]
[1768222778290,0.96680598,3118.9,3118.1,1.23611212]
[1768222778495,0.96680598,3118.8,3118.1,1.23611212]
[1768222778699,1.44324352,3119.1,3118.1,1.23611212]
[1768222778901,0.9667312,3119.0,3118.1,1.23611212]
[1768222779203,0.9667312,3118.9,3118.1,1.23611212]
[1768222779404,0.9667312,3118.8,3118.1,1.23611212]
[1768222779604,1.44324352,3119.1,3118.1,1.23611212]
[1768222779804,0.96668517,3119.0,3118.1,1.23611212]
[1768222780002,0.96668517,3118.9,3118.1,1.23611212]
[1768222780201,0.96668517,3118.8,3118.1,1.23611212]
[1768222780501,1.44324352,3119.1,3118.1,1.23611212]
[1768222780702,0.96664413,3119.0,3118.1,1.23611212]
[1768222781001,0.96664413,3118.9,3118.1,1.23611212]
[1768222781201,0.96664413,3118.8,3118.1,1.23611212]
[1768222781502,1.44324352,3119.1,3118.1,1.23611212]
[1768222781701,0.96660929,3119.0,3118.1,1.23611212]
[1768222781904,0.96660929,3118.9,3118.1,1.23611212]
[1768222782104,0.96660929,3118.8,3118.1,1.23611212]
[1768222782297,1.44324352,3119.1,3118.1,1.23611212]
[1768222782498,0.96658079,3119.0,3118.1,1.23611212]
[1768222782702,0.96658079,3118.9,3118.1,1.23611212]
[1768222783004,0.96658079,3118.8,3118.1,1.23611212]
[1768222783198,1.44324352,3119.1,3118.1,1.23611212]
[1768222783399,0.96658082,3119.0,3118.1,1.23611212]
[1768222783697,0.96658082,3118.9,3118.1,1.23611212]
[1768222783896,0.96658082,3118.8,3118.1,1.23611212]
[1768222784096,1.44324352,3119.1,3118.1,1.23611212]
[1768222784296,0.96656162,3119.0,3118.1,1.23611212]
[1768222784500,0.96656162,3118.9,3118.1,1.23611212]
[1768222784699,0.96656162,3118.8,3118.1,1.23611212]
[1768222785002,1.44324352,3119.1,3118.1,1.23611212]
[1768222785202,0.96654521,3119.0,3118.1,1.23611212]
[1768222785413,0.96654521,3118.9,3118.1,1.23611212]
[1768222785604,0.96654521,3118.8,3118.1,1.23611212]
[1768222785805,1.44324352,3119.1,3118.1,1.23611212]
[1768222786008,0.96653448,3119.0,3118.1,1.23611212]
[1768222786316,0.96653448,3118.9,3118.1,1.23611212]
[1768222786516,0.96653448,3118.8,3118.1,1.23611212]
[1768222786807,1.44324352,3119.1,3118.1,1.23611212]
[1768222787009,0.96652807,3119.0,3118.1,1.23611212]
[1768222787210,0.96652807,3118.9,3118.1,1.23611212]
[1768222787406,0.96652807,3118.8,3118.0,0.16056]
[1768222787607,1.44324352,3119.1,3118.0,0.16056]
[1768222787807,0.96653347,3119.0,3118.0,0.16056]
[1768222788010,0.96653347,3118.9,3118.0,0.16056]
[1768222788206,0.96653347,3118.8,3118.0,0.16056]
[1768222788407,1.44324352,3119.1,3118.0,0.16056]
[1768222788610,0.96654539,3119.0,3118.0,0.16056]
[1768222788812,0.96654539,3118.9,3118.0,0.16056]
[1768222789010,0.96654539,3118.8,3118.0,0.16056]
[1768222789211,1.44324352,3119.1,3118.0,0.16056]
[1768222789399,0.96654635,3119.0,3118.0,0.16056]
[1768222789604,0.96654635,3118.9,3118.0,0.16056]
[1768222789806,0.96654635,3118.8,3118.0,0.16056]
[1768222790013,1.44324352,3119.1,3118.0,0.16056]
[1768222790312,0.96656477,3119.0,3118.0,0.16056]
[1768222790514,0.96656477,3118.9,3118.0,0.16056]
[1768222790709,0.96656477,3118.8,3118.0,0.16056]
[1768222791010,1.44324352,3119.1,3118.0,0.16056]
[1768222791212,0.96582357,3119.0,3118.0,0.16056]
[1768222791410,0.96582357,3118.9,3118.0,0.16056]
[1768222791610,0.96582357,3118.8,3118.0,0.16056]
[1768222791812,1.44324352,3119.1,3118.0,0.16056]
[1768222792005,0.9658545,3119.0,3118.1,0.16056]
[1768222792210,0.9658545,3118.9,3118.1,0.16056]
[1768222792409,0.9658545,3118.8,3118.1,0.16056]
[1768222792611,1.44324352,3119.1,3118.1,0.16056]
[1768222792810,0.96589572,3119.0,3118.1,0.16056]
[1768222793012,0.96589572,3118.9,3118.1,0.16056]
[1768222793208,0.96589572,3118.8,3118.1,0.16056]
[1768222793408,1.44324352,3119.1,3118.1,0.16056]
[1768222793609,0.96594336,3119.0,3118.1,0.16056]
[1768222793817,0.96594336,3118.9,3118.1,0.16056]
[1768222794008,0.96594336,3118.8,3118.1,0.16056]
[1768222794211,1.44324352,3119.1,3118.1,0.16056]
[1768222794412,0.96594226,3119.0,3118.1,0.16056]
[1768222794614,0.96594226,3118.9,3118.1,0.16056]
[1768222794812,0.96594226,3118.8,3118.1,0.16056]
[1768222795013,1.44324352,3119.1,3118.1,0.16056]
[1768222795212,0.9659973,3119.0,3118.1,0.16056]
[1768222795410,0.9659973,3118.9,3118.1,0.16056]
[1768222795611,0.9659973,3118.8,3118.1,0.16056]
[1768222795808,1.44324352,3119.1,3118.1,0.16056]
[1768222796010,0.96605778,3119.0,3118.1,0.16056]
[1768222796208,0.96605778,3118.9,3118.1,0.16056]
[1768222796405,0.96605778,3118.8,3118.1,0.16056]
[1768222796604,1.44324352,3119.1,3118.1,0.16056]
[1768222796816,0.96613327,3119.0,3118.1,0.16056]
[1768222797013,0.96613327,3118.9,3118.1,0.16056]
[1768222797207,1.44324352,3119.1,3118.1,0.16056]
[1768222797208,0.96613327,3118.8,3118.1,0.16056]
[1768222797410,1.44324352,3119.1,3118.1,0.16056]
[1768222797710,0.96615901,3119.0,3118.1,0.16056]
[1768222797917,0.96615901,3118.9,3118.1,0.16056]
[1768222798116,0.96615901,3118.8,3118.1,0.16056]
[1768222798317,1.44324352,3119.1,3118.1,0.16056]
[1768222798617,0.96627737,3119.0,3118.1,0.16056]
[1768222798816,0.96627737,3118.9,3118.1,0.16056]
[1768222799018,0.96627737,3118.8,3118.1,0.16056]
[1768222799317,1.44324352,3119.1,3118.1,0.16056]
[1768222799616,0.96643641,3119.0,3118.1,0.16056]
[1768222799817,0.96643641,3118.9,3118.1,0.16056]
[1768222800006,0.96643641,3118.8,3118.1,0.16056]
[1768222800210,1.44324352,3119.1,3118.1,0.16056]
[1768222800409,0.966436,3119.0,3118.1,0.16056]
[1768222800615,0.966436,3118.9,3118.1,0.16056]
[1768222800917,0.966436,3118.8,3118.1,0.16056]
[1768222801111,0.966436,3118.7,3118.1,0.16056]
[1768222801312,1.44324352,3119.1,3118.1,0.16056]
[1768222801512,0.96671447,3119.0,3118.1,0.16056]
[1768222801713,0.96671447,3118.9,3118.1,0.16056]
[1768222801912,0.96671447,3118.8,3118.1,0.16056]
[1768222802213,1.44324352,3119.1,3118.1,0.16056]
[1768222802412,0.9666057,3119.0,3118.1,0.16056]
[1768222802710,0.9666057,3118.9,3118.1,0.16056]
[1768222803011,1.44324352,3119.1,3118.2,0.16055]
[1768222803211,0.96679902,3119.0,3118.3,0.16055]
[1768222803413,0.96679902,3118.9,3118.3,0.16055]
[1768222803612,1.44324352,3119.5,3118.3,0.16055]
[1768222803813,0.9666603,3119.4,3118.3,0.16055]
[1768222804011,0.9666603,3119.3,3118.3,0.16055]
[1768222804213,0.9666603,3119.2,3118.3,0.16055]
[1768222804518,0.9666603,3119.1,3118.3,0.16055]
[1768222804719,0.9666603,3119.0,3118.3,0.16055]
[1768222804920,0.9666603,3118.9,3118.3,0.16055]
[1768222805217,1.33703529,3119.4,3118.3,0.16055]
[1768222805420,0.96648245,3119.3,3118.3,0.16055]
[1768222805617,0.96648245,3119.2,3118.3,0.16055]
[1768222805818,1.33703529,3119.4,3118.3,0.16055]
[1768222805819,0.96648245,3119.1,3118.3,0.16055]
[1768222806021,0.96648245,3119.0,3118.3,0.16055]
[1768222806213,0.96648245,3118.9,3118.3,0.16055]
[1768222806414,1.33703529,3119.4,3118.3,0.16055]
[1768222806614,0.96642352,3119.3,3118.3,0.16055]
[1768222806916,1.33703529,3119.4,3118.3,0.16055]
[1768222806917,0.96642352,3119.2,3118.3,0.16055]
[1768222807118,0.96642352,3119.1,3118.3,0.16055]
[1768222807320,0.96642352,3119.0,3118.3,0.16055]
[1768222807521,0.96642352,3118.9,3118.3,0.16055]
[1768222807822,1.33703529,3119.4,3118.3,0.16055]
[1768222808020,0.96638137,3119.3,3118.3,0.16055]
[1768222808325,2.30341666,3119.2,3118.3,0.16055]
[1768222808623,0.96638137,3119.1,3118.3,0.16055]
[1768222808822,0.96638137,3119.0,3118.3,0.16055]
[1768222809022,0.96638137,3118.9,3118.3,0.16055]
[1768222809221,1.33703529,3119.2,3118.3,0.16055]
[1768222809422,0.96629634,3119.1,3118.3,0.16055]
[1768222809622,0.96629634,3119.0,3118.3,0.16055]
[1768222809921,0.96629634,3118.9,3118.3,0.16055]
[1768222810118,1.33703529,3119.2,3118.3,0.16055]
[1768222810321,0.9662908,3119.1,3118.3,0.16055]
[1768222810523,0.9662908,3119.0,3118.3,0.16055]
[1768222810825,0.9662908,3118.9,3118.3,0.16055]
[1768222811014,1.33703529,3119.2,3118.3,0.16055]
[1768222811219,0.9662591,3119.1,3118.3,0.16055]
[1768222811518,0.9662591,3119.0,3118.3,0.16055]
[1768222811722,0.9662591,3118.9,3118.3,0.16055]
[1768222812027,1.33703529,3119.2,3118.3,0.16055]
[1768222812215,0.96623476,3119.1,3118.3,0.16055]
[1768222812414,0.96623476,3119.0,3118.3,0.16055]
[1768222812617,0.96623476,3118.9,3118.3,0.16055]
[1768222812918,1.33703529,3119.2,3118.3,0.16055]
[1768222813117,0.96621304,3119.1,3118.3,0.16055]
[1768222813320,0.96621304,3119.0,3118.3,0.16055]
[1768222813523,0.96621304,3118.9,3118.3,0.16055]
[1768222813722,1.33703529,3119.2,3118.3,0.16055]
[1768222813922,0.96617898,3119.1,3118.3,0.16055]
[1768222814123,0.96617898,3119.0,3118.3,0.16055]
[1768222814324,0.96617898,3118.9,3118.3,0.16055]
[1768222814623,1.33703529,3119.2,3118.3,0.16055]
[1768222814825,0.96617174,3119.1,3118.3,0.16055]
[1768222815026,0.96617174,3119.0,3118.3,0.16055]
[1768222815225,0.96617174,3118.9,3118.3,0.16055]
[1768222815526,1.33703529,3119.2,3118.3,0.16055]
[1768222815725,0.96616933,3119.1,3118.3,0.16055]
[1768222815926,0.96616933,3119.0,3118.3,0.16055]
[1768222816226,0.96616933,3118.9,3118.3,0.16055]
[1768222816426,1.33703529,3119.2,3118.3,0.16055]
[1768222816628,0.96619347,3119.1,3118.3,0.16055]
[1768222816827,0.96619347,3119.0,3118.3,0.16055]
[1768222817027,1.33703529,3119.2,3118.3,0.16055]
[1768222817028,0.96619347,3118.9,3118.3,0.16055]
[1768222817230,1.33703529,3119.2,3118.3,0.16055]
[1768222817424,0.96623237,3119.1,3118.3,0.16055]
[1768222817629,0.96623237,3119.0,3118.3,0.16055]
[1768222817831,0.96623237,3118.9,3118.3,0.16055]
[1768222818130,1.33703529,3119.2,3118.3,0.16055]
[1768222818330,0.96623272,3119.1,3118.3,0.16055]
[1768222818533,0.96623272,3119.0,3118.3,0.16055]
[1768222818822,0.96623272,3118.9,3118.3,0.16055]
[1768222819026,1.33703529,3119.2,3118.3,0.16055]
[1768222819226,0.96616998,3119.1,3118.3,0.16055]
[1768222819422,0.96616998,3119.0,3118.3,0.16055]
[1768222819628,0.96616998,3118.9,3118.3,0.16055]
[1768222819828,1.33703529,3119.2,3118.3,0.16055]
[1768222820024,0.96617176,3119.1,3118.3,0.16055]
[1768222820229,1.33703529,3119.2,3118.3,0.16055]
[1768222820230,0.96617176,3119.0,3118.3,0.16055]
[1768222820432,0.96617176,3118.9,3118.3,0.16055]
[1768222820630,1.33703529,3119.2,3118.3,0.16055]
[1768222820831,0.96730887,3119.1,3118.3,0.16055]
[1768222821033,0.96730887,3119.0,3118.3,0.16055]
[1768222821229,0.96730887,3118.9,3118.3,0.16055]
[1768222821430,1.33703529,3119.2,3118.3,0.16055]
[1768222821627,0.96705961,3119.1,3118.3,0.16055]
[1768222821835,0.96705961,3119.0,3118.3,0.16055]
[1768222822136,0.96705961,3118.9,3118.3,0.16055]
[1768222822337,1.33703529,3119.2,3118.3,0.16055]
[1768222822533,0.96709254,3119.1,3118.3,0.16055]
[1768222822734,0.96709254,3119.0,3118.3,0.16055]
[1768222822935,0.96709254,3118.9,3118.3,0.16055]
[1768222823137,1.33703529,3119.2,3118.3,0.16055]
[1768222823336,0.96708613,3119.1,3118.3,0.16055]
[1768222823537,0.96708613,3119.0,3118.3,0.16055]
[1768222823742,0.96708613,3118.9,3118.3,0.16055]
[1768222823936,1.33703529,3119.2,3118.3,0.16055]
[1768222824136,0.96711727,3119.1,3118.3,0.16055]
[1768222824341,0.96711727,3119.0,3118.3,0.16055]
[1768222824536,0.96711727,3118.9,3118.3,0.16055]
[1768222824736,1.33703529,3119.2,3118.3,0.16055]
[1768222824945,0.96714633,3119.1,3118.3,0.16055]
[1768222825241,0.96714633,3119.0,3118.3,0.16055]
[1768222825442,0.96714633,3118.9,3118.3,0.16055]
[1768222825640,1.33703529,3119.2,3118.3,0.16055]
[1768222825836,0.96719147,3119.1,3118.3,0.16055]
[1768222826038,2.34157498,3119.0,3118.3,0.16055]
[1768222826236,0.96719147,3118.9,3118.3,0.16055]
[1768222826846,1.37438351,3118.8,3117.7,0.16058]
[1768222827043,1.37438351,3118.8,3117.8,1.533]
[1768222827750,1.37438351,3118.8,3117.8,1.69357]
[1768222830444,1.37438351,3118.8,3117.9,0.16057]
[1768222830640,1.37438351,3119.5,3117.9,0.16057]
[1768222830844,0.96750285,3119.4,3117.9,0.16057]
[1768222831040,1.37438351,3119.2,3117.9,0.16057]
[1768222831244,1.37438351,3119.0,3117.9,0.16057]
[1768222831449,0.96750285,3118.9,3117.9,0.16057]
[1768222833455,2.34188636,3118.9,3117.9,0.16057]
[1768222833655,0.96750285,3118.8,3117.9,0.16057]
[1768222841455,0.96750285,3118.8,3118.2,0.16055]
[1768222841662,1.35576776,3119.3,3118.4,1.39651498]
[1768222842257,1.35576776,3119.3,3118.5,1.549]
[1768222852065,1.35576776,3119.3,3118.6,1.23568235]
[1768222852672,0.00338001,3119.7,3118.6,1.23568235]
[1768222852873,1.35914777,3119.7,3119.2,1.23568235]
[1768222853168,3.53925381,3120.5,3119.2,1.23568235]
[1768222853375,0.35178922,3120.4,3119.2,1.23568235]
[1768222853574,1.31508445,3120.3,3119.2,1.23568235]
[1768222853772,1.31508445,3120.2,3119.0,0.16051]
[1768222853974,0.96329523,3120.1,3119.1,1.23568235]
[1768222854768,0.96329523,3120.1,3119.3,1.23568235]
[1768222855270,0.96329523,3120.1,3119.2,0.1605]
[1768222855475,2.31906299,3120.1,3119.2,0.1605]
[1768222855678,0.96329523,3120.0,3119.2,0.1605]
[1768222855867,0.96329523,3119.9,3119.2,0.1605]
[1768222856069,1.35576776,3120.1,3119.2,0.1605]
[1768222856269,0.9627656,3120.0,3119.2,0.1605]
[1768222856575,1.35576776,3120.1,3119.2,0.1605]
[1768222856777,0.96249366,3120.0,3119.2,0.1605]
[1768222857069,1.35576776,3120.1,3119.2,0.1605]
[1768222857274,0.96249567,3120.0,3119.2,0.1605]
[1768222857579,1.35576776,3120.1,3119.2,0.1605]
[1768222857777,0.9622736,3120.0,3119.2,0.1605]
[1768222857977,1.35576776,3120.1,3119.2,0.1605]
[1768222858177,0.9622737,3120.0,3119.2,0.1605]
[1768222858378,1.35576776,3120.1,3119.2,0.1605]
[1768222858577,0.96210755,3120.0,3119.2,0.1605]
[1768222858777,1.35576776,3120.1,3119.2,0.1605]
[1768222858980,0.9621004,3120.0,3119.2,0.1605]
[1768222859180,1.35576776,3120.1,3119.2,0.1605]
[1768222859375,0.96196931,3120.0,3119.2,0.1605]
[1768222859672,1.35576776,3120.1,3119.2,0.1605]
[1768222859872,0.96197031,3120.0,3119.2,0.1605]
[1768222860080,1.35576776,3120.1,3119.2,0.1605]
[1768222860282,0.96197219,3120.0,3119.2,0.1605]
[1768222860478,1.35576776,3120.1,3119.2,0.1605]
[1768222860777,0.96187257,3120.0,3119.2,0.1605]
[1768222860979,1.35576776,3120.1,3119.2,0.1605]
[1768222861170,0.96186986,3120.0,3119.2,0.1605]
[1768222861371,1.35576776,3120.1,3119.2,0.1605]
[1768222861580,0.96180285,3120.0,3119.2,0.1605]
[1768222861779,1.35576776,3120.1,3119.2,0.1605]
[1768222861976,0.9618029,3120.0,3119.2,0.1605]
[1768222862180,1.35576776,3120.1,3119.2,0.1605]
[1768222862373,2.19744544,3120.0,3119.0,0.00352287]
[1768222862573,1.35576776,3119.5,3118.6,0.16053]
[1768222862972,2.59145011,3119.1,3118.0,0.16056]
[1768222863284,1.35576776,3119.0,3118.0,0.16056]
[1768222863581,2.59145011,3118.9,3118.0,0.00409387]
[1768222863980,2.59145011,3118.6,3117.4,0.16059]
[1768222864182,1.35576776,3118.6,3117.4,1.39627235]
[1768222864976,1.23568235,3118.1,3117.4,0.00362335]
[1768222865182,1.3035358,3119.0,3117.8,1.23568235]
[1768222865383,2.19616932,3118.9,3117.6,1.23568235]
[1768222865576,0.96048697,3118.8,3117.6,1.23568235]
[1768222865782,1.23568235,3118.5,3117.4,0.00362335]
[1768222865984,0.96048697,3118.4,3117.4,0.00362335]
[1768222866276,1.3035358,3118.5,3117.4,0.00362335]
[1768222866485,1.23568235,3118.1,3117.4,0.00362335]
[1768222866670,1.23568235,3118.1,3116.7,2.78168235]
[1768222866875,2.53921815,3118.3,3116.9,1.23568235]
[1768222867276,1.23568235,3118.1,3116.7,1.546]
[1768222867884,1.23568235,3118.1,3116.8,1.23568235]
[1768222870684,1.3035358,3118.3,3116.7,1.23946822]
[1768222870983,1.23568235,3118.1,3116.7,1.23946822]
[1768222872880,1.23568235,3117.7,3116.7,0.00378587]
[1768222873088,1.23929827,3117.7,3116.7,0.00378587]
[1768222873386,0.00361592,3117.7,3116.7,0.00378587]
[1768222874887,0.00361592,3117.7,3117.0,1.23568235]
[1768222875392,0.00361592,3117.7,3116.7,1.26782329]
[1768222875593,0.00361592,3117.7,3116.8,1.23568235]
[1768222876093,1.23568235,3117.2,3115.8,0.16068]
[1768222876291,1.23568235,3117.2,3116.0,1.23568235]
[1768222876488,1.23568235,3117.4,3116.0,1.23568235]
[1768222876793,1.23568235,3117.4,3116.2,1.23568235]
[1768222877191,1.23568235,3117.0,3116.2,0.00300879]
[1768222877395,1.23568235,3116.8,3115.8,0.16068]
[1768222877794,1.23568235,3117.3,3116.1,1.23568235]
[1768222878093,1.28580374,3117.5,3116.3,1.23568235]
[1768222878294,1.23568235,3117.6,3116.3,1.23568235]
[1768222878483,1.23568235,3117.6,3116.3,1.23873209]
[1768222880107,1.23568235,3116.4,3115.1,0.16071]
[1768222880398,1.23568235,3115.9,3114.7,1.26403742]
[1768222880693,1.28580374,3116.7,3115.0,1.26403742]
[1768222880694,1.23568235,3116.3,3115.0,1.26403742]
[1768222880891,1.23568235,3116.4,3115.0,2.49971977]
[1768222881198,2.52148609,3116.7,3115.2,1.23568235]
[1768222881893,2.52148609,3116.7,3115.0,1.26642776]
[1768222881894,1.28580374,3116.7,3115.4,1.23568235]
[1768222882889,1.28580374,3117.2,3116.0,1.23568235]
[1768222883103,1.23568235,3117.1,3115.8,1.26403742]
[1768222883298,1.23568235,3117.1,3115.7,1.23568235]
[1768222883593,1.23568235,3116.5,3115.3,1.23568235]
[1768222883791,1.23568235,3116.5,3115.1,1.23568235]
[1768222883996,1.28580374,3116.8,3115.3,1.23568235]
[1768222883997,1.23568235,3116.7,3115.3,1.23568235]
[1768222885398,1.44641374,3117.2,3115.7,1.23568235]
[1768222885597,1.23568235,3117.0,3115.5,1.23568235]
[1768222886084,1.23568235,3116.8,3115.5,1.23568235]
[1768222887297,1.23568235,3116.8,3115.5,2.49971977]
[1768222887691,1.23568235,3117.0,3115.5,2.49971977]
[1768222887891,1.23568235,3117.1,3115.7,1.23568235]
[1768222888801,1.23568235,3116.9,3115.5,2.49971977]
[1768222890599,1.23568235,3117.1,3115.7,1.23568235]
[1768222890897,0.95400022,3117.0,3115.7,1.23568235]
[1768222891088,1.23568235,3117.1,3115.7,1.23568235]
[1768222891292,1.23568235,3117.6,3116.0,1.26403742]
[1768222891293,1.23568235,3117.4,3116.0,1.26403742]
[1768222891490,1.23568235,3117.2,3116.0,1.26403742]
[1768222891690,1.23568235,3117.2,3115.9,1.23568235]
[1768222891691,0.9549849,3117.1,3115.9,1.23568235]
[1768222891899,1.23568235,3117.2,3115.9,1.23568235]
[1768222892095,0.95497133,3117.1,3115.9,1.23568235]
[1768222892299,0.95619574,3117.0,3115.9,1.23568235]
[1768222892491,1.23568235,3117.2,3115.9,1.23568235]
[1768222892692,0.9561818,3117.1,3115.9,1.23568235]
[1768222892899,0.9561818,3117.0,3115.9,2.49971977]
[1768222893199,0.95682956,3116.9,3115.9,2.49971977]
[1768222893500,1.23568235,3117.2,3115.9,2.49971977]
[1768222893800,0.95691778,3117.1,3115.9,2.49971977]
[1768222894000,0.95691778,3117.0,3115.9,2.49971977]
[1768222894199,0.95691778,3116.9,3115.9,2.49971977]
[1768222894399,0.95691778,3116.8,3115.9,2.49971977]
[1768222894602,1.23568235,3117.2,3115.9,2.49971977]
[1768222894801,0.95738504,3117.1,3115.9,2.49971977]
[1768222895001,0.95738504,3117.0,3115.9,2.49971977]
[1768222895201,0.95738504,3116.9,3115.9,2.49971977]
[1768222895397,0.95738504,3116.8,3115.9,2.49971977]
[1768222895605,1.23568235,3117.2,3115.9,2.49971977]
[1768222895809,0.95770906,3117.1,3115.9,2.49971977]
[1768222896101,0.95770906,3117.0,3115.9,1.26403742]
[1768222896304,0.95770906,3116.9,3115.9,1.26403742]